fUST/lending_fUST_20250225
["ID","MTS","AMOUNT","RATE_DAILY","PERIOD"]
[354427304,1740485453551,-500.0,0.00071506,120]
[354427305,1740485453560,-1351.64,0.00071506,120]
[354427306,1740485453570,-1374.68,0.00071506,120]
[354427307,1740485453579,-500.0,0.00071506,120]
[354427308,1740485453589,-500.0,0.00071506,120]
[354427309,1740485453598,-1393.49,0.00071506,120]
[354427310,1740485453607,-500.0,0.00071506,120]
[354427311,1740485453618,-151.0,0.00071506,120]
[354427312,1740485453627,-602.23,0.00071506,120]
[354427313,1740485453637,-4727.75,0.00071506,120]
[354427314,1740485453647,-151.0,0.00071506,120]
[354427315,1740485453656,-850.9804347,0.00071506,120]
[354427316,1740485453801,-480.925,0.00060547,120]
[354427317,1740485454066,7215.8366462,0.00035,120]
[354427318,1740485454084,-500.0,0.00059177,120]
[354427319,1740485454094,-19.075,0.00060547,120]
[354427320,1740485454104,-500.0,0.00061917,120]
[354427321,1740485454116,-377.4249999,0.00063287,120]
[354427322,1740485454128,-122.5750001,0.00063287,120]
[354427323,1740485454138,-8793.2249999,0.00071506,120]
[354427324,1740485454272,-500.0,0.00059177,120]
[354427325,1740485454282,-1520.17,0.00071506,120]
[354427326,1740485454319,41545.2648918,0.00035,120]
[354427327,1740485513305,250003.29551332,0.00066686,7]
[354427328,1740485527368,24334.31760242,0.00017964,5]
[354427329,1740485533119,111950.83838315,0.00066739,120]
[354427330,1740485533145,75852.16161685,0.00066739,120]
[354427331,1740485556248,2629.0,0.00066739,120]
[354427332,1740485654830,199999.74390199,0.00066739,30]
[354427333,1740485682342,3329.0,0.00066739,120]
[354427334,1740485797953,-1000.00000021,0.00032905,2]
[354427335,1740485870337,-3596.35697119,0.00032905,2]
[354427336,1740485870369,-169.8700741,0.00033316,2]
[354427337,1740485870399,-172.908599,0.0003338,2]
[354427338,1740485870435,-172.908599,0.0003338,120]
[354427339,1740485870465,-1317.74616833,0.0003499,2]
[354427340,1740485870498,-400.0,0.00034999,2]
[354427341,1740485870536,-33096.30958838,0.00035,120]
[354427342,1740485897088,1000.0,0.00066791,120]
[354427343,1740485984488,186.101894,0.00013699,2]
[354427344,1740485984725,186.101894,0.00027397,2]
[354427345,1740486209241,3000.0,0.00066786,120]
[354427346,1740486232208,150.0,0.00066786,120]
[354427350,1740486426087,-166.0,0.00033327,120]
[354427351,1740486426113,-320.0,0.00033434,2]
[354427352,1740486426136,-6156.46306232,0.00033435,2]
[354427353,1740486478204,7244.76226219,0.00016,2]
[354427354,1740486482449,816.55,0.00015999,2]
[354427355,1740486517483,444.0987884,0.00015641,2]
[354427358,1740486519784,322.67128797,0.00025,2]
[354427359,1740486520518,16465.39627102,0.00016,2]
[354427360,1740486520652,7994.84431277,0.00016,2]
[354427361,1740486521036,6527.04303629,0.00015,2]
[354427362,1740486521210,14795.76708318,0.0001599,2]
[354427363,1740486521733,100000.0,0.00018,15]
[354427364,1740486521761,20682.34556776,0.00018,15]
[354427365,1740486521788,52151.63684562,0.00018,15]
[354427367,1740486524273,4581.15234408,0.000135,2]
[354427399,1740486632035,-1021.86804867,0.00026,30]
[354427401,1740486632048,-2171.43000029,0.00026,30]
[354427403,1740486632105,-519.67,0.00026,30]
[354427404,1740486632165,-917.40424904,0.00026,30]
[354427405,1740486632175,-200.0,0.0003,30]
[354427406,1740486632185,-592.24687063,0.00033335,81]
[354427407,1740486632195,-480.72967818,0.00033435,2]
[354427408,1740486632205,-6754.61920215,0.00034034,2]
[354427409,1740486632218,-483.5436,0.00034034,2]
[354427410,1740486632230,-17661.83719785,0.00034034,2]
[354427411,1740486632240,-150.10327359,0.00034213,2]
[354427412,1740486632250,-208.0,0.00034313,2]
[354427413,1740486632369,-554.533296,0.00034449,2]
[354427414,1740486632381,-253.13847252,0.0003465,5]
[354427415,1740486632391,-152.35481227,0.000347,5]
[354427416,1740486632400,-203.066117,0.000347,5]
[354427417,1740486632410,-500.0,0.000347,5]
[354427418,1740486632420,-500.0,0.000347,5]
[354427419,1740486632429,-500.0,0.000347,5]
[354427420,1740486632439,-1314.99099184,0.00034728,12]
[354427421,1740486632448,-3107.00553442,0.0003487,4]
[354427422,1740486632457,-3003.58535188,0.000349,7]
[354427423,1740486632467,-14868.43818839,0.0003499,30]
[354427424,1740486632477,-3050.75592128,0.00035,120]
[354427425,1740486632487,-5795.70250048,0.00035,14]
[354427426,1740486632496,-10495.8923242,0.00035,2]
[354427427,1740486632506,-8890.4022211,0.00035,120]
[354427428,1740486632516,-19603.87691479,0.00035354,2]
[354427429,1740486632526,-5117.52529226,0.00036,2]
[354427440,1740486637894,-636.903228,0.00036,2]
[354427441,1740486637957,-1947.56219977,0.00036,2]
[354427443,1740486637968,-200.37931897,0.0003621,2]
[354427445,1740486637977,-260.63440915,0.0003624,2]
[354427447,1740486637987,-3550.64711838,0.00037358,2]
[354427449,1740486637996,-150.10327358,0.00040025,28]
[354427451,1740486638005,-592.2468706,0.00041673,120]
[354427453,1740486638014,-150.10327358,0.00045838,28]
[354427455,1740486638024,-500.0,0.00046136,10]
[354427457,1740486638033,-500.0,0.00046136,10]
[354427459,1740486638042,-302.20059007,0.00046136,10]
[354427460,1740486638052,-500.0,0.00046942,7]
[354427462,1740486638061,-275.3658873,0.00046942,10]
[354427463,1740486638071,-500.0,0.00046942,10]
[354427464,1740486638080,-500.0,0.0004695,10]
[354427465,1740486638090,-500.0,0.00046962,10]
[354427466,1740486638099,-500.0,0.00046962,7]
[354427467,1740486638111,-500.0,0.00046962,10]
[354427468,1740486638125,-500.0,0.00046962,10]
[354427469,1740486638135,-622.57102164,0.00047293,2]
[354427470,1740486638145,-500.0,0.00047293,10]
[354427471,1740486638156,-500.0,0.00047293,10]
[354427472,1740486638165,-151.0,0.000477,24]
[354427473,1740486638175,-160.762672,0.00048113,2]
[354427474,1740486638185,-500.0,0.000483,10]
[354427475,1740486638195,-500.0,0.000483,2]
[354427476,1740486638205,-500.0,0.00048379,10]
[354427477,1740486638214,-500.0,0.00048379,10]
[354427478,1740486638223,-500.0,0.00048379,7]
[354427479,1740486638233,-7076.9276519,0.00048388,4]
[354427480,1740486638243,-795.45529205,0.00048388,4]
[354427481,1740486638252,-56538.35438894,0.00048398,120]
[354427482,1740486638261,-280.61502365,0.00048399,10]
[354427483,1740486638271,-502.16312422,0.00048399,10]
[354427484,1740486638281,-501.93329769,0.00048399,10]
[354427485,1740486638290,-151.0,0.000491,25]
[354427486,1740486638301,-307.9,0.00049305,30]
[354427487,1740486638310,-500.0,0.00049314,120]
[354427488,1740486638320,-166.71541956,0.00049314,2]
[354427489,1740486638333,-500.0,0.00049314,120]
[354427490,1740486638342,-500.0,0.00049314,31]
[354427491,1740486638352,-500.0,0.00049314,120]
[354427492,1740486638361,-500.0,0.00049314,120]
[354427493,1740486638372,-304.7932019,0.00049314,120]
[354427494,1740486638381,-500.0,0.00049314,120]
[354427495,1740486638391,-500.0,0.00049314,120]
[354427496,1740486638401,-500.0,0.00049314,120]
[354427497,1740486638410,-500.0,0.00049314,120]
[354427498,1740486638420,-500.0,0.00049314,120]
[354427499,1740486638429,-500.0,0.00049314,120]
[354427500,1740486638438,-500.0,0.00049314,120]
[354427501,1740486638448,-446.12804715,0.00049314,120]
[354427502,1740486638457,-500.0,0.00049314,120]
[354427503,1740486638466,-500.0,0.00049314,120]
[354427504,1740486638477,-500.0,0.00049314,120]
[354427505,1740486638487,-500.0,0.00049314,120]
[354427506,1740486638496,-500.0,0.00049314,120]
[354427507,1740486638506,-500.0,0.00049314,120]
[354427508,1740486638516,-500.0,0.00049314,120]
[354427509,1740486638526,-500.0,0.00049314,120]
[354427510,1740486638536,-531.09844044,0.00049314,120]
[354427511,1740486638548,-499.0,0.00049314,120]
[354427512,1740486638557,-42461.5659114,0.00049315,4]
[354427513,1740486638567,-4772.7317523,0.00049315,4]
[354427514,1740486638576,-500.0,0.00049324,31]
[354427515,1740486638585,-274.0064308,0.00049324,31]
[354427516,1740486638595,-169.47443506,0.00049324,120]
[354427517,1740486638605,-500.0,0.00049324,120]
[354427518,1740486638614,-250882.1832059,0.00049325,120]
[354427519,1740486638624,-1878.02542084,0.000499,2]
[354427520,1740486638634,-202.74162674,0.0005,30]
[354427521,1740486638644,-592.2468706,0.00050011,120]
[354427522,1740486638751,-151.0,0.000504,28]
[354427523,1740486638761,-151.0,0.00050412,2]
[354427524,1740486638771,-160.18509176,0.00050412,2]
[354427525,1740486638782,-151.0,0.000505,23]
[354427526,1740486638791,-180.108369,0.0005058,10]
[354427527,1740486638803,-499.0,0.00050684,120]
[354427528,1740486638813,-166.1,0.0005096,2]
[354427529,1740486638823,-1878.02542084,0.00051236,2]
[354427530,1740486638833,-151.0,0.000515,28]
[354427531,1740486638843,-182.71,0.00051508,2]
[354427532,1740486638852,-554.533296,0.00051673,2]
[354427533,1740486638862,-151.0,0.000518,26]
[354427534,1740486638871,-191.45870359,0.00052054,120]
[354427535,1740486638881,-255.58,0.00052056,2]
[354427536,1740486638891,-160.762672,0.0005215,2]
[354427537,1740486638900,-160.762672,0.000523,10]
[354427538,1740486638909,-151.0,0.000525,25]
[354427539,1740486638919,-1878.02542084,0.00052571,2]
[354427540,1740486638928,-151.0,0.000532,25]
[354427541,1740486638938,-151.0,0.000536,23]
[354427542,1740486638947,-1878.02542084,0.00053907,2]
[354427543,1740486638956,-160.762672,0.0005425,10]
[354427544,1740486638966,-151.0,0.000546,21]
[354427545,1740486638975,-151.0,0.000547,25]
[354427546,1740486638985,-151.0,0.000547,24]
[354427547,1740486638994,-406.722,0.00054769,103]
[354427548,1740486639004,-31467.48613374,0.00054784,5]
[354427549,1740486639018,-25147.93508146,0.00054784,5]
[354427550,1740486639028,-6363.6423364,0.00054784,5]
[354427551,1740486639038,-500.0,0.00054794,120]
[354427552,1740486639051,-502.96165605,0.00054794,120]
[354427553,1740486639061,-500.0,0.00054794,120]
[354427554,1740486639071,-500.0,0.00054794,120]
[354427555,1740486639081,-500.0,0.00054794,120]
[354427556,1740486639093,-500.0,0.00054794,120]
[354427557,1740486639107,-500.0,0.00054794,120]
[354427558,1740486639117,-500.0,0.00054794,120]
[354427559,1740486639127,-499.00000004,0.00054794,120]
[354427560,1740486639136,-500.0,0.00054794,2]
[354427561,1740486639147,-500.0,0.00054794,120]
[354427562,1740486639156,-500.0,0.00054794,120]
[354427563,1740486639166,-500.0,0.00054794,120]
[354427564,1740486639180,-500.0,0.00054794,120]
[354427565,1740486639191,-500.0,0.00054794,120]
[354427566,1740486639200,-500.0,0.00054794,120]
[354427567,1740486639210,-500.0,0.00054794,120]
[354427568,1740486639219,-617.39,0.00054794,120]
[354427569,1740486639229,-500.0,0.00054794,120]
[354427570,1740486639239,-500.0,0.00054794,120]
[354427571,1740486639249,-500.0,0.00054794,120]
[354427572,1740486639259,-500.0,0.00054794,120]
[354427573,1740486639269,-500.0,0.00054794,120]
[354427574,1740486639279,-500.66590864,0.00054794,120]
[354427575,1740486639288,-500.0,0.00054794,120]
[354427576,1740486639299,-500.0,0.00054794,120]
[354427577,1740486639308,-500.0,0.00054794,120]
[354427578,1740486639318,-500.0,0.00054794,120]
[354427579,1740486639327,-503.5735996,0.00054794,120]
[354427580,1740486639336,-500.0,0.00054794,120]
[354427581,1740486639345,-500.0,0.00054794,120]
[354427582,1740486639355,-500.0,0.00054794,120]
[354427583,1740486639364,-500.0,0.00054794,120]
[354427585,1740486639374,-219.49782583,0.00054794,120]
[354427586,1740486639383,-500.0,0.00054794,120]
[354427587,1740486639392,-500.0,0.00054794,120]
[354427588,1740486639401,-500.0,0.00054794,120]
[354427589,1740486639411,-721.77,0.00054794,120]
[354427590,1740486639420,-500.0,0.00054794,120]
[354427591,1740486639429,-500.0,0.00054794,120]
[354427592,1740486639439,-480.07323883,0.00054794,120]
[354427593,1740486639448,-508.72220053,0.00054794,120]
[354427594,1740486639457,-500.0,0.00054794,120]
[354427595,1740486639467,-504.85823594,0.00054794,120]
[354427596,1740486639476,-500.0,0.00054794,120]
[354427597,1740486639485,-500.0,0.00054794,120]
[354427598,1740486639495,-500.0,0.00054794,120]
[354427599,1740486639504,-500.0,0.00054794,120]
[354427600,1740486639514,-500.0,0.00054794,120]
[354427601,1740486639523,-502.3738707,0.00054794,120]
[354427602,1740486639533,-500.0,0.00054794,120]
[354427603,1740486639542,-503.12290678,0.00054794,120]
[354427604,1740486639552,-500.0,0.00054794,120]
[354427605,1740486639562,-500.0,0.00054794,120]
[354427606,1740486639572,-500.0,0.00054794,120]
[354427608,1740486639581,-523.34509277,0.00054794,120]
[354427610,1740486639591,-500.0,0.00054794,120]
[354427612,1740486639600,-970.88,0.00054794,120]
[354427613,1740486639610,-525.1424798,0.00054794,120]
[354427614,1740486639619,-506.1192031,0.00054794,120]
[354427615,1740486639630,-250.0,0.00054794,120]
[354427616,1740486639639,-504.90543825,0.00054794,120]
[354427617,1740486639648,-500.0,0.00054794,120]
[354427618,1740486639658,-500.0,0.00054794,120]
[354427619,1740486639668,-503.08663227,0.00054794,120]
[354427620,1740486639677,-500.0,0.00054794,120]
[354427621,1740486639687,-556.97036397,0.00054794,120]
[354427622,1740486639697,-500.0,0.00054794,120]
[354427623,1740486639707,-747.64,0.00054794,120]
[354427624,1740486639717,-500.0,0.00054794,120]
[354427625,1740486639726,-500.0,0.00054794,120]
[354427626,1740486639736,-500.0,0.00054794,120]
[354427627,1740486639746,-689.24,0.00054794,120]
[354427629,1740486639755,-500.0,0.00054794,120]
[354427631,1740486639765,-500.0,0.00054794,120]
[354427632,1740486639776,-500.0,0.00054794,120]
[354427633,1740486639786,-500.0,0.00054794,120]
[354427634,1740486639798,-500.0,0.00054794,120]
[354427635,1740486639808,-500.0,0.00054794,120]
[354427636,1740486639817,-506.50137077,0.00054794,120]
[354427637,1740486639827,-500.0,0.00054794,120]
[354427638,1740486639837,-500.0,0.00054794,120]
[354427639,1740486639846,-500.0,0.00054794,120]
[354427640,1740486639856,-500.0,0.00054794,120]
[354427641,1740486639866,-503.95751416,0.00054794,120]
[354427642,1740486639875,-922.08,0.00054794,120]
[354427643,1740486639885,-526.96399275,0.00054794,120]
[354427644,1740486639895,-649.27,0.00054794,120]
[354427645,1740486639905,-500.0,0.00054794,120]
[354427646,1740486639914,-500.0,0.00054794,120]
[354427647,1740486639924,-445.0542155,0.00054794,120]
[354427648,1740486639933,-501.41801439,0.00054794,120]
[354427649,1740486639943,-500.0,0.00054794,120]
[354427650,1740486639953,-500.0,0.00054794,120]
[354427651,1740486639963,-500.0,0.00054794,120]
[354427652,1740486639973,-505.84093215,0.00054794,120]
[354427653,1740486639983,-500.0,0.00054794,120]
[354427654,1740486639994,-500.0,0.00054794,120]
[354427655,1740486640004,-600.0,0.00054794,120]
[354427656,1740486640080,-500.0,0.00054794,120]
[354427657,1740486640100,-500.0,0.00054794,120]
[354427658,1740486640112,-500.0,0.00054794,120]
[354427659,1740486640121,-500.0,0.00054794,120]
[354427660,1740486640130,-500.0,0.00054794,120]
[354427661,1740486640141,-500.0,0.00054794,120]
[354427662,1740486640150,-500.0,0.00054794,120]
[354427663,1740486640160,-500.0,0.00054794,120]
[354427664,1740486640169,-573.03,0.00054794,120]
[354427665,1740486640178,-500.0,0.00054794,120]
[354427666,1740486640190,-500.0,0.00054794,120]
[354427667,1740486640199,-500.0,0.00054794,120]
[354427668,1740486640209,-500.0,0.00054794,120]
[354427669,1740486640218,-500.0,0.00054794,120]
[354427670,1740486640228,-500.0,0.00054794,120]
[354427671,1740486640237,-500.0,0.00054794,120]
[354427672,1740486640247,-500.0,0.00054794,120]
[354427673,1740486640257,-500.0,0.00054794,120]
[354427674,1740486640266,-500.0,0.00054794,120]
[354427675,1740486640276,-502.13448407,0.00054794,120]
[354427676,1740486640285,-500.0,0.00054794,120]
[354427677,1740486640295,-500.0,0.00054794,120]
[354427678,1740486640304,-500.0,0.00054794,120]
[354427679,1740486640314,-500.0,0.00054794,120]
[354427680,1740486640323,-500.0,0.00054794,120]
[354427681,1740486640332,-500.0,0.00054794,120]
[354427682,1740486640342,-500.0,0.00054794,120]
[354427683,1740486640351,-500.0,0.00054794,120]
[354427684,1740486640361,-500.0,0.00054794,120]
[354427685,1740486640370,-542.2,0.00054794,120]
[354427686,1740486640379,-500.0,0.00054794,120]
[354427687,1740486640388,-500.0,0.00054794,120]
[354427688,1740486640398,-500.0,0.00054794,120]
[354427689,1740486640408,-583.8,0.00054794,120]
[354427690,1740486640417,-500.0,0.00054794,120]
[354427691,1740486640426,-626.44,0.00054794,120]
[354427692,1740486640436,-334.95438111,0.00054794,120]
[354427693,1740486640445,-500.0,0.00054794,120]
[354427694,1740486640454,-500.0,0.00054794,120]
[354427695,1740486640464,-500.0,0.00054794,120]
[354427696,1740486640473,-500.0,0.00054794,120]
[354427697,1740486640482,-500.0,0.00054794,120]
[354427698,1740486640492,-500.0,0.00054794,120]
[354427699,1740486640501,-500.0,0.00054794,120]
[354427700,1740486640511,-579.0,0.00054794,120]
[354427701,1740486640520,-500.0,0.00054794,120]
[354427702,1740486640530,-500.0,0.00054794,120]
[354427703,1740486640540,-500.0,0.00054794,120]
[354427704,1740486640552,-500.0,0.00054794,120]
[354427705,1740486640561,-500.0,0.00054794,120]
[354427706,1740486640571,-623.38,0.00054794,120]
[354427707,1740486640581,-500.0,0.00054794,120]
[354427708,1740486640591,-500.0,0.00054794,120]
[354427709,1740486640600,-502.46710506,0.00054794,120]
[354427710,1740486640610,-542.11,0.00054794,120]
[354427711,1740486640620,-500.0,0.00054794,120]
[354427712,1740486640630,-453.90137469,0.00054794,120]
[354427713,1740486640640,-500.0,0.00054794,120]
[354427714,1740486640649,-500.0,0.00054794,120]
[354427715,1740486640659,-500.0,0.00054794,120]
[354427716,1740486640669,-574.88,0.00054794,120]
[354427717,1740486640679,-1000.0,0.00054794,10]
[354427718,1740486640689,-500.0,0.00054794,120]
[354427719,1740486640699,-625.61,0.00054794,120]
[354427720,1740486640709,-195.60940245,0.00054794,120]
[354427721,1740486640719,-272.06771486,0.00054794,120]
[354427722,1740486640729,-683.86,0.00054794,120]
[354427723,1740486640740,-987.06,0.00054794,120]
[354427724,1740486640749,-501.96829161,0.00054794,120]
[354427725,1740486640759,-500.0,0.00054794,120]
[354427726,1740486640769,-500.0,0.00054794,120]
[354427727,1740486640779,-500.0,0.00054794,120]
[354427728,1740486640789,-500.0,0.00054794,120]
[354427729,1740486640801,-500.0,0.00054794,120]
[354427730,1740486640811,-500.0,0.00054794,120]
[354427731,1740486640820,-500.78701828,0.00054794,120]
[354427732,1740486640830,-500.88915483,0.00054794,120]
[354427733,1740486640841,-500.0,0.00054794,120]
[354427734,1740486640850,-500.0,0.00054794,120]
[354427735,1740486640861,-667.86,0.00054794,120]
[354427736,1740486640870,-7683.15,0.00054794,120]
[354427737,1740486640880,-500.0,0.00054794,120]
[354427738,1740486640890,-500.0,0.00054794,120]
[354427739,1740486640900,-631.7537015,0.00054794,120]
[354427740,1740486640910,-1368.06,0.00054794,120]
[354427741,1740486640919,-500.0,0.00054794,120]
[354427742,1740486640929,-500.0,0.00054794,120]
[354427743,1740486640939,-500.0,0.00054794,120]
[354427744,1740486640948,-500.0,0.00054794,120]
[354427745,1740486640957,-1000.0,0.00054794,120]
[354427746,1740486640967,-2395.79,0.00054794,120]
[354427747,1740486640976,-500.0,0.00054794,120]
[354427748,1740486640985,-500.0,0.00054794,120]
[354427749,1740486640995,-500.0,0.00054794,120]
[354427750,1740486641005,-500.0,0.00054794,120]
[354427751,1740486641015,-500.0,0.00054794,120]
[354427752,1740486641025,-500.0,0.00054794,120]
[354427753,1740486641035,-230.03189126,0.00054794,120]
[354427754,1740486641048,-500.0,0.00054794,120]
[354427755,1740486641058,-500.0,0.00054794,120]
[354427756,1740486641069,-500.0,0.00054794,120]
[354427757,1740486641078,-300.86046417,0.00054794,120]
[354427758,1740486641088,-500.0,0.00054794,120]
[354427759,1740486641099,-500.0,0.00054794,120]
[354427760,1740486641111,-339.83277611,0.00054794,120]
[354427761,1740486641428,-161.91501548,0.00054794,120]
[354427762,1740486641438,-500.0,0.00054794,120]
[354427763,1740486641447,-500.0,0.00054794,120]
[354427764,1740486641456,-223.14271853,0.00054794,120]
[354427765,1740486641465,-502.71096484,0.00054794,120]
[354427766,1740486641474,-500.0,0.00054794,120]
[354427767,1740486641483,-500.0,0.00054794,120]
[354427768,1740486641493,-500.0,0.00054794,120]
[354427769,1740486641502,-500.0,0.00054794,120]
[354427770,1740486641511,-635.92,0.00054794,120]
[354427771,1740486641520,-500.0,0.00054794,120]
[354427772,1740486641530,-500.0,0.00054794,120]
[354427773,1740486641539,-500.0,0.00054794,120]
[354427774,1740486641549,-1410.01,0.00054794,120]
[354427775,1740486641559,-500.0,0.00054794,120]
[354427776,1740486641568,-500.0,0.00054794,120]
[354427777,1740486641578,-1256.69,0.00054794,120]
[354427778,1740486641588,-2599.98,0.00054794,120]
[354427779,1740486641597,-504.85927931,0.00054794,120]
[354427780,1740486641607,-500.0,0.00054794,120]
[354427781,1740486641616,-500.0,0.00054794,120]
[354427782,1740486641626,-9829.16,0.00054794,120]
[354427783,1740486641635,-500.0,0.00054794,120]
[354427784,1740486641644,-500.0,0.00054794,120]
[354427785,1740486641654,-500.0,0.00054794,120]
[354427786,1740486641663,-500.0,0.00054794,120]
[354427787,1740486641672,-500.0,0.00054794,120]
[354427788,1740486641682,-1468.56,0.00054794,120]
[354427789,1740486641691,-856.65,0.00054794,120]
[354427790,1740486641701,-500.0,0.00054794,120]
[354427791,1740486641710,-501.02916718,0.00054794,120]
[354427792,1740486641719,-1539.89,0.00054794,120]
[354427793,1740486641729,-500.0,0.00054794,120]
[354427794,1740486641738,-500.0,0.00054794,120]
[354427795,1740486641748,-6514.75,0.00054794,120]
[354427796,1740486641758,-586.4,0.00054794,120]
[354427797,1740486641767,-500.0,0.00054794,120]
[354427798,1740486641776,-500.0,0.00054794,120]
[354427799,1740486641786,-500.0,0.00054794,120]
[354427800,1740486641798,-501.99831608,0.00054794,120]
[354427801,1740486641807,-931.35,0.00054794,120]
[354427802,1740486641817,-865.41,0.00054794,120]
[354427803,1740486641828,-500.0,0.00054794,120]
[354427804,1740486641837,-636.62,0.00054794,120]
[354427805,1740486641848,-500.9270198,0.00054794,120]
[354427806,1740486641858,-500.0,0.00054794,120]
[354427807,1740486641867,-500.0,0.00054794,120]
[354427808,1740486641876,-500.0,0.00054794,120]
[354427809,1740486641886,-501.61746734,0.00054794,120]
[354427810,1740486641895,-500.0,0.00054794,120]
[354427811,1740486641905,-503.08027572,0.00054794,120]
[354427812,1740486641915,-500.0,0.00054794,120]
[354427813,1740486641924,-1135.43,0.00054794,120]
[354427814,1740486641934,-500.0,0.00054794,120]
[354427815,1740486641943,-500.0,0.00054794,120]
[354427816,1740486641953,-1136.01,0.00054794,120]
[354427817,1740486641962,-500.0,0.00054794,120]
[354427818,1740486641972,-500.0,0.00054794,120]
[354427819,1740486641981,-501.57979701,0.00054794,120]
[354427820,1740486641992,-131708.31,0.00054794,7]
[354427821,1740486642002,-615.81,0.00054794,120]
[354427822,1740486642011,-500.0,0.00054794,120]
[354427823,1740486642021,-2917.81,0.00054794,3]
[354427824,1740486642030,-500.0,0.00054794,30]
[354427825,1740486642040,-500.0,0.00054794,120]
[354427826,1740486642051,-500.0,0.00054794,120]
[354427827,1740486642061,-2804.61,0.00054794,120]
[354427828,1740486642071,-501.63477957,0.00054794,120]
[354427829,1740486642080,-501.40531309,0.00054794,120]
[354427830,1740486642090,-1068.79,0.00054794,120]
[354427831,1740486642104,-501.27367056,0.00054794,120]
[354427832,1740486642114,-501.75746886,0.00054794,120]
[354427833,1740486642124,-601.54,0.00054794,120]
[354427834,1740486642134,-4396.17,0.00054794,120]
[354427835,1740486642144,-500.0,0.00054794,120]
[354427836,1740486642154,-730.05,0.00054794,120]
[354427837,1740486642163,-500.0,0.00054794,120]
[354427838,1740486642174,-500.0,0.00054794,120]
[354427839,1740486642184,-500.0,0.00054794,30]
[354427840,1740486642194,-500.0,0.00054794,120]
[354427841,1740486642203,-500.0,0.00054794,120]
[354427842,1740486642213,-500.0,0.00054794,120]
[354427843,1740486642222,-500.0,0.00054794,120]
[354427844,1740486642232,-652.44,0.00054794,120]
[354427845,1740486642241,-500.0,0.00054794,120]
[354427846,1740486642250,-957.41,0.00054794,120]
[354427847,1740486642260,-1633.36,0.00054794,120]
[354427848,1740486642270,-500.0,0.00054794,120]
[354427849,1740486642279,-500.0,0.00054794,120]
[354427850,1740486642288,-5000.0,0.00054794,14]
[354427851,1740486642299,-5000.0,0.00054794,14]
[354427852,1740486642309,-500.0,0.00054794,120]
[354427853,1740486642318,-5000.0,0.00054794,14]
[354427854,1740486642327,-454.03094517,0.00054794,120]
[354427855,1740486642337,-5000.0,0.00054794,14]
[354427856,1740486642347,-5000.0,0.00054794,14]
[354427865,1740486642428,-5000.0,0.00054794,14]
[354427867,1740486642438,-502.24124936,0.00054794,120]
[354427869,1740486642447,-5000.0,0.00054794,14]
[354427871,1740486642457,-5000.0,0.00054794,14]
[354427872,1740486642466,-505.88718998,0.00054794,120]
[354427874,1740486642475,-500.0,0.00054794,120]
[354427875,1740486642484,-5000.0,0.00054794,14]
[354427876,1740486642494,-1126.06,0.00054794,120]
[354427877,1740486642504,-5000.0,0.00054794,14]
[354427879,1740486642513,-5000.0,0.00054794,14]
[354427880,1740486642523,-5000.0,0.00054794,14]
[354427881,1740486642532,-5000.0,0.00054794,14]